bitfinex/quotes_SOLUSD_20241117
["timestamp","ask_amount","ask_price","bid_price","bid_amount"]
[1731885369406,4.2585,234.82,234.67,0.12549]
[1731885369719,16.71796155,234.78,234.71,16.71796155]
[1731885369888,39.45826155,234.84,234.69,16.71796155]
[1731885369889,16.71796155,234.76,234.69,16.71796155]
[1731885370279,16.71796155,234.72,234.63,27.37296155]
[1731885370623,16.71796155,234.7,234.63,10.655]
[1731885371095,16.71796155,234.66,234.59,20.98066155]
[1731885371882,16.71796155,234.66,234.59,31.63746155]
[1731885372914,16.71796155,234.6,234.54,10.6589]
[1731885373092,4.2615,234.66,234.54,10.6589]
[1731885373093,16.71796155,234.62,234.54,10.6589]
[1731885374107,16.71796155,234.6,234.54,14.9225]
[1731885374422,16.71796155,234.58,234.51,4.2641]
[1731885374781,23.776884,234.57,234.49,16.71796155]
[1731885375105,23.776884,234.57,234.49,31.64376155]
[1731885375283,162.3,234.62,234.53,16.71796155]
[1731885375598,23.776884,234.58,234.51,16.71796155]
[1731885375802,23.776884,234.6,234.53,16.71796155]
[1731885376118,16.71796155,234.69,234.59,16.71796155]
[1731885376295,16.71796155,234.69,234.61,16.71796155]
[1731885376609,4.2606,234.71,234.63,16.71796155]
[1731885376610,16.71796155,234.71,234.63,16.71796155]
[1731885378206,16.71796155,234.73,234.65,16.71796155]
[1731885378388,16.71796155,234.75,234.65,16.71796155]
[1731885378787,16.71796155,234.75,234.67,16.71796155]
[1731885378988,16.71796155,234.79,234.71,16.71796155]
[1731885379285,16.71796155,234.81,234.73,16.71796155]
[1731885379597,16.71796155,234.81,234.75,16.71796155]
[1731885379904,16.71796155,234.83,234.75,16.71796155]
[1731885380106,16.71796155,234.83,234.76,4.2596]
[1731885380903,16.71796155,234.83,234.69,6.6405]
[1731885380904,16.71796155,234.79,234.69,6.6405]
[1731885381226,16.71796155,234.79,234.7,20.97866155]
[1731885381511,16.71796155,234.77,234.7,14.9125]
[1731885381723,16.71796155,234.79,234.7,31.63046155]
[1731885382292,16.71796155,234.75,234.7,10.6518]
[1731885382816,16.71796155,234.75,234.7,14.9125]
[1731885382988,23.776884,234.74,234.66,16.71796155]
[1731885383312,16.71796155,234.71,234.65,10.6541]
[1731885383895,0.1,234.77,234.62,16.71796155]
[1731885384116,16.71796155,234.65,234.6,4.2625]
[1731885384414,16.71796155,234.67,234.6,4.2625]
[1731885384622,20.97926155,234.67,234.6,14.9189]
[1731885384790,16.71796155,234.67,234.6,14.9189]
[1731885385516,16.71796155,234.65,234.6,10.6564]
[1731885385690,23.776884,234.6,234.49,16.71796155]
[1731885385889,16.71796155,234.59,234.49,16.71796155]
[1731885386120,16.71796155,234.55,234.49,10.6613]
[1731885386291,16.71796155,234.53,234.49,10.6613]
[1731885386493,23.776884,234.52,234.45,16.71796155]
[1731885386713,16.71796155,234.54,234.45,16.71796155]
[1731885386916,16.71796155,234.47,234.41,4.2659]
[1731885387124,16.71796155,234.45,234.39,10.6659]
[1731885387295,16.71796155,234.47,234.39,27.38386155]
[1731885387800,16.71796155,234.45,234.39,10.6659]
[1731885388107,16.71796155,234.43,234.39,10.6659]
[1731885388315,27.25586059,234.43,234.39,10.6659]
[1731885389003,27.25586059,234.43,234.35,31.52286059]
[1731885389601,4.265,234.47,234.35,4.267]
[1731885389823,27.25586059,234.43,234.35,31.52286059]
[1731885390115,27.25586059,234.45,234.37,27.25586059]
[1731885390315,27.25586059,234.45,234.38,4.2665]
[1731885390516,71.03274459,234.47,234.39,27.25586059]
[1731885390818,27.25586059,234.45,234.38,14.9329]
[1731885391020,27.25586059,234.45,234.38,42.18876059]
[1731885391228,27.25586059,234.41,234.36,4.2668]
[1731885391411,27.25586059,234.43,234.36,4.2668]
[1731885391714,27.25586059,234.45,234.38,27.25586059]
[1731885392408,27.25586059,234.45,234.39,4.2663]
[1731885393502,27.25586059,234.45,234.36,14.934]
[1731885393503,27.25586059,234.43,234.36,14.934]
[1731885393706,23.776884,234.42,234.36,14.934]
[1731885394418,27.25586059,234.43,234.36,14.934]
[1731885395598,23.776884,234.42,234.36,14.934]
[1731885397132,27.25586059,234.43,234.36,14.934]
[1731885398043,23.776884,234.42,234.36,14.934]
[1731885399111,27.25586059,234.41,234.33,27.25586059]
[1731885399327,27.25586059,234.41,234.31,10.6695]
[1731885399328,27.25586059,234.35,234.31,10.6695]
[1731885399836,27.25586059,234.35,234.27,27.25586059]
[1731885400019,27.25586059,234.35,234.29,4.2682]
[1731885400238,27.25586059,234.31,234.26,10.6717]
[1731885401021,27.25586059,234.29,234.25,0.4630574]
[1731885401326,27.25586059,234.27,234.25,0.4630574]
[1731885402534,27.25586059,234.29,234.25,4.7318574]
[1731885403340,17.0849,234.38,234.25,15.4041574]
[1731885403341,27.25586059,234.31,234.25,15.4041574]
[1731885403520,27.25586059,234.33,234.25,42.66001799]
[1731885403723,23.776884,234.32,234.25,42.66001799]
[1731885404137,162.3,234.37,234.25,42.66001799]
[1731885404138,27.25586059,234.37,234.29,27.25586059]
[1731885404445,27.25586059,234.31,234.25,15.4041574]
[1731885405126,27.25586059,234.4,234.3,14.938]
[1731885405325,27.25586059,234.4,234.32,27.25586059]
[1731885406245,27.25586059,234.42,234.34,27.25586059]
[1731885406441,162.3,234.43,234.33,14.9361]
[1731885406442,27.25586059,234.4,234.33,14.9361]
[1731885406839,162.3,234.43,234.34,27.25586059]
[1731885407184,27.25586059,234.44,234.36,27.25586059]
[1731885407463,189.55586059,234.5,234.4,27.25586059]
[1731885407675,27.25586059,234.5,234.4,27.25586059]
[1731885407974,27.25586059,234.48,234.4,27.25586059]
[1731885408151,27.25586059,234.48,234.41,4.266]
[1731885408353,16.7675163,234.47,234.41,4.266]
[1731885408551,16.7675163,234.47,234.41,14.931]
[1731885408752,16.7675163,234.49,234.41,14.931]
[1731885409051,23.1857163,234.53,234.43,16.7675163]
[1731885409253,23.1857163,234.53,234.41,31.6985163]
[1731885409254,16.7675163,234.49,234.41,31.6985163]
[1731885409556,16.7675163,234.51,234.43,16.7675163]
[1731885409766,16.7675163,234.53,234.45,16.7675163]
[1731885410165,16.7675163,234.57,234.49,16.7675163]
[1731885410344,16.7675163,234.61,234.53,16.7675163]
[1731885410671,16.7675163,234.65,234.55,16.7675163]
[1731885410861,16.7675163,234.63,234.55,16.7675163]
[1731885411084,16.7675163,234.69,234.6,16.7675163]
[1731885411941,16.7675163,234.73,234.64,16.7675163]
[1731885412171,16.7675163,234.77,234.68,31.6814163]
[1731885412363,16.7675163,234.77,234.69,27.17730708]
[1731885412364,27.17730708,234.77,234.69,27.17730708]
[1731885412869,6.5331,234.85,234.7,0.25098]
[1731885412870,27.17730708,234.79,234.7,0.25098]
[1731885413179,27.17730708,234.75,234.68,14.9139]
[1731885413379,27.17730708,234.77,234.68,14.9139]
[1731885413669,27.17730708,234.75,234.68,14.9139]
[1731885413873,27.27730708,234.84,234.61,0.12549]
[1731885413874,27.17730708,234.7,234.61,0.12549]
[1731885414046,27.17730708,234.68,234.6,10.6561]
[1731885414247,27.17730708,234.68,234.6,14.9186]
[1731885414446,27.17730708,234.61,234.54,14.9226]
[1731885414646,27.17730708,234.63,234.55,27.17730708]
[1731885414845,27.17730708,234.61,234.54,14.9226]
[1731885415449,27.17730708,234.63,234.54,42.09990708]
[1731885415941,28.13175862,234.68,234.54,42.09990708]
[1731885415942,27.17730708,234.65,234.56,27.17730708]
[1731885416142,27.17730708,234.67,234.59,0.25098]
[1731885416365,23.776884,234.68,234.6,27.17730708]
[1731885416547,27.17730708,234.71,234.63,0.25098]
[1731885417364,27.17730708,234.69,234.6,27.17730708]
[1731885417573,27.17730708,234.69,234.6,42.09610708]
[1731885417868,27.17730708,234.69,234.62,27.17730708]
[1731885418113,27.17730708,234.69,234.63,0.25098]
[1731885418244,27.17730708,234.71,234.63,0.25098]
[1731885418574,27.17730708,234.71,234.62,27.17730708]
[1731885418751,27.17730708,234.69,234.61,0.25098]
[1731885418949,4.2598,234.75,234.6,10.6564]
[1731885418950,27.17730708,234.66,234.6,10.6564]
[1731885419158,27.17730708,234.61,234.54,10.6589]
[1731885419461,27.17730708,234.61,234.49,4.2645]
[1731885419462,27.17730708,234.57,234.49,42.10320708]
[1731885419656,27.17730708,234.59,234.49,42.10320708]
[1731885419975,27.17730708,234.59,234.51,27.17730708]
[1731885420775,27.17730708,234.59,234.52,4.264]
[1731885421454,27.17730708,234.69,234.58,0.09367462]
[1731885421755,162.3,234.74,234.53,0.25098]
[1731885421756,27.17730708,234.65,234.53,0.25098]
[1731885421967,27.17730708,234.6,234.53,0.25098]
[1731885422804,27.17730708,234.62,234.54,42.10000708]
[1731885423089,27.17730708,234.6,234.54,10.6591]
[1731885423481,27.17730708,234.56,234.48,14.9262]
[1731885423688,27.17730708,234.56,234.48,42.10350708]
[1731885424392,27.17730708,234.58,234.5,27.17730708]
[1731885424562,27.17730708,234.56,234.49,10.6614]
[1731885424884,6.4893,234.62,234.49,10.6614]
[1731885424885,27.17730708,234.62,234.54,27.17730708]
[1731885425063,27.17730708,234.64,234.56,27.17730708]
[1731885425263,27.17730708,234.68,234.6,27.17730708]
[1731885425465,27.17730708,234.72,234.62,27.17730708]
[1731885425674,27.17730708,234.68,234.6,27.17730708]
[1731885425890,27.17730708,234.7,234.62,27.17730708]
[1731885426065,27.17730708,234.7,234.63,0.25098]
[1731885426265,27.17730708,234.7,234.56,21.9133]
[1731885426266,27.17730708,234.68,234.6,27.17730708]
[1731885426767,27.17730708,234.68,234.61,4.2623]
[1731885427689,27.17730708,234.72,234.64,27.17730708]
[1731885427986,27.17730708,234.74,234.67,0.25098]
[1731885428191,27.17730708,234.7,234.63,0.25098]
[1731885428564,27.17730708,234.72,234.65,0.25098]
[1731885429422,27.17730708,234.67,234.61,10.6559]
[1731885429795,27.17730708,234.67,234.61,14.9182]
[1731885430103,27.17730708,234.69,234.61,14.9182]
[1731885430688,27.17730708,234.65,234.57,14.9207]
[1731885430909,27.17730708,234.68,234.58,27.17730708]
[1731885431120,27.17730708,234.68,234.6,27.17730708]
[1731885431419,27.17730708,234.7,234.62,27.17730708]
[1731885432370,27.17730708,234.7,234.62,27.42828708]
[1731885432526,27.17730708,234.72,234.64,27.17730708]
[1731885432706,27.17730708,234.78,234.71,0.12549]
[1731885432918,27.17730708,234.8,234.72,27.17730708]
[1731885433114,22.0061,234.86,234.65,6.6606]
[1731885433115,27.17730708,234.78,234.7,27.17730708]
[1731885433399,27.17730708,234.78,234.7,31.43790708]
[1731885434027,27.17730708,234.75,234.67,0.12549]
[1731885434205,4.2593,234.78,234.66,4.2613]
[1731885434206,27.17730708,234.71,234.66,4.2613]
[1731885434411,27.17730708,234.73,234.66,4.2613]
[1731885434612,27.17730708,234.73,234.66,31.43860708]
[1731885434826,27.17730708,234.75,234.68,27.17730708]
[1731885435125,27.17730708,234.75,234.67,0.25098]
[1731885435523,27.17730708,234.75,234.68,14.9139]
[1731885436228,27.17730708,234.81,234.73,27.17730708]
[1731885436539,27.17730708,234.85,234.77,27.17730708]
[1731885437106,27.17730708,234.85,234.78,0.25098]
[1731885437305,15.4031,234.92,234.78,0.25098]
[1731885437306,27.17730708,234.87,234.79,27.17730708]
[1731885437603,27.17730708,234.89,234.81,42.08290708]
[1731885438028,27.17730708,234.87,234.81,14.9056]
[1731885438326,27.17730708,234.85,234.81,10.6469]
[1731885438510,27.17730708,234.85,234.76,37.82620708]
[1731885438708,27.17730708,234.81,234.76,14.9085]
[1731885439130,0.29367462,234.91,234.76,42.08580708]
[1731885439131,27.17730708,234.83,234.76,42.08580708]
[1731885439308,27.17730708,234.85,234.77,0.25098]
[1731885439509,27.17730708,234.85,234.78,42.08480708]
[1731885439808,27.17730708,234.85,234.78,14.9075]
[1731885440006,27.17730708,234.85,234.78,42.08480708]
[1731885440440,27.17730708,234.85,234.78,14.9075]
[1731885440618,27.17730708,234.85,234.78,42.08480708]
[1731885440814,27.17730708,234.89,234.81,0.12549]
[1731885441013,27.17730708,234.91,234.82,27.17730708]
[1731885441203,189.47730708,234.96,234.88,27.17730708]
[1731885441411,27.17730708,234.98,234.9,27.17730708]
[1731885441637,27.17730708,234.98,234.91,14.8992]
[1731885443131,4.255,235.02,234.82,15.6499]
[1731885443132,27.17730708,234.93,234.86,10.6444]
[1731885443363,27.17730708,234.87,234.78,27.17730708]
[1731885443507,27.17730708,234.81,234.77,4.2594]
[1731885443717,168.4396,234.91,234.78,27.17730708]
[1731885443718,27.17730708,234.85,234.78,27.17730708]
[1731885443912,27.17730708,234.96,234.8,27.17730708]
[1731885444217,27.17730708,234.96,234.77,14.9081]
[1731885444218,27.17730708,234.89,234.77,15.0081]
[1731885444464,27.17730708,234.91,234.84,27.17730708]
[1731885444627,27.17730708,234.93,234.86,27.17730708]
[1731885444932,27.17730708,234.99,234.92,27.17730708]
[1731885445103,178.8234,235.05,234.92,27.17730708]
[1731885445104,27.17730708,235.02,234.93,0.25098]
[1731885445303,27.17730708,235.02,234.95,27.17730708]
[1731885445509,27.17730708,235.04,234.96,4.2558]
[1731885446012,27.17730708,235.04,234.96,14.8959]
[1731885446603,27.17730708,235.06,234.99,27.17730708]
[1731885446840,0.4630574,235.07,235.01,27.17730708]
[1731885447715,0.4630574,235.07,235.01,31.43220708]
[1731885448114,0.4630574,235.07,235.06,27.42828708]
[1731885449545,0.4630574,235.07,235.04,27.17730708]
[1731885449715,0.4630574,235.07,235.01,10.6378]
[1731885450028,27.17730708,235.06,235.01,10.6378]
[1731885450837,27.17730708,235.06,235.01,14.8929]
[1731885451309,0.4630574,235.07,234.92,27.17730708]
[1731885451310,27.17730708,235.02,234.92,27.17730708]
[1731885451504,23.776884,235.05,234.91,4.2568]
[1731885451505,27.17730708,234.97,234.91,4.2568]
[1731885452207,27.17730708,234.95,234.89,14.9002]
[1731885452504,27.17730708,234.95,234.89,10.643]
[1731885452678,27.17730708,234.99,234.9,27.17730708]
[1731885452878,27.17730708,234.97,234.89,14.9003]
[1731885453299,27.17730708,234.95,234.89,14.9003]
[1731885453710,27.17730708,234.95,234.89,10.643]
[1731885454485,0.09367462,235.02,234.84,27.17730708]
[1731885454486,27.17730708,234.93,234.84,27.17730708]
[1731885454685,27.17730708,234.86,234.81,0.09367462]
[1731885454989,27.17730708,234.87,234.81,0.09367462]
[1731885455304,27.17730708,234.85,234.81,0.09367462]
[1731885456811,27.17730708,234.94,234.84,0.25098]
[1731885456985,27.17730708,234.96,234.88,0.25098]
[1731885458222,27.17730708,234.96,234.89,31.43460708]
[1731885458395,27.17730708,234.96,234.89,4.2573]
[1731885458599,27.17730708,234.94,234.89,4.2573]
[1731885459412,27.17730708,234.92,234.87,14.9013]
[1731885459610,27.17730708,234.92,234.87,10.6437]
[1731885461083,27.17730708,234.92,234.85,27.17730708]
[1731885461284,27.17730708,234.95,234.87,27.17730708]
[1731885461519,27.17730708,234.93,234.85,27.17730708]
[1731885461886,27.17730708,234.86,234.82,10.6464]
[1731885462114,27.17730708,234.88,234.82,10.6464]
[1731885462291,27.17730708,234.92,234.83,27.17730708]
[1731885462918,27.17730708,234.87,234.82,10.6464]
[1731885463612,27.17730708,234.85,234.81,0.09367462]
[1731885463816,27.17730708,234.83,234.81,0.09367462]
[1731885465609,23.776884,234.82,234.81,0.09367462]
[1731885465919,43.776884,234.82,234.81,0.09367462]
[1731885466089,43.87055862,234.82,234.81,0.09367462]
[1731885467811,43.87055862,234.82,234.6,10.6562]
[1731885467812,0.2,234.77,234.6,10.6562]
[1731885468006,27.17730708,234.65,234.6,10.6562]
[1731885468895,27.17730708,234.63,234.56,4.2632]
[1731885469133,27.17730708,234.61,234.54,14.9224]
[1731885469421,23.776884,234.64,234.54,42.09970708]
[1731885469422,23.776884,234.62,234.54,42.09970708]
[1731885470392,23.776884,234.6,234.54,14.9224]
[1731885471203,23.776884,234.6,234.54,42.09970708]
[1731885471516,23.776884,234.6,234.54,14.9224]
[1731885471724,27.17730708,234.63,234.56,27.17730708]
[1731885471899,27.17730708,234.65,234.57,14.9208]
[1731885472102,27.17730708,234.67,234.6,27.17730708]
[1731885472304,27.17730708,234.67,234.57,14.9208]
[1731885472305,27.17730708,234.65,234.57,14.9208]
[1731885472505,27.17730708,234.67,234.6,27.17730708]
[1731885473343,27.17730708,234.67,234.58,27.42828708]
[1731885473841,23.776884,234.68,234.61,14.9182]
[1731885474124,27.17730708,234.69,234.61,14.9182]
[1731885474500,21.2812,234.79,234.63,27.17730708]
[1731885474501,27.17730708,234.71,234.63,27.17730708]
[1731885474701,27.17730708,234.73,234.65,27.17730708]
[1731885474900,27.17730708,234.69,234.62,0.25098]
[1731885475335,27.17730708,234.73,234.65,27.17730708]
[1731885475513,27.17730708,234.71,234.64,0.25098]
[1731885475828,27.17730708,234.73,234.66,0.25098]
[1731885476026,27.17730708,234.75,234.67,27.17730708]
[1731885476334,27.17730708,234.77,234.69,27.17730708]
[1731885476702,27.17730708,234.81,234.73,27.17730708]
[1731885476902,27.17730708,234.79,234.71,27.17730708]
[1731885477820,27.17730708,234.75,234.71,10.651]
[1731885478028,27.17730708,234.77,234.71,10.651]
[1731885478221,27.17730708,234.79,234.71,10.651]
[1731885478528,27.17730708,234.75,234.71,10.651]
[1731885479029,25.09979608,234.75,234.71,10.651]
[1731885480121,27.17730708,234.77,234.71,10.651]
[1731885480909,27.17730708,234.73,234.66,14.9149]
[1731885481103,27.17730708,234.7,234.66,14.9149]
[1731885482120,23.776884,234.67,234.61,14.918]
[1731885482319,27.17730708,234.67,234.61,14.918]
[1731885482506,27.17730708,234.69,234.61,14.918]
[1731885483027,27.17730708,234.67,234.61,14.918]
[1731885483524,27.17730708,234.65,234.59,25.4962]
[1731885484027,27.17730708,234.61,234.59,21.2335]
[1731885484430,27.17730708,234.63,234.59,21.2335]
[1731885484928,27.17730708,234.61,234.59,21.2335]
[1731885485344,27.17730708,234.67,234.59,36.1529]
[1731885485517,23.776884,234.68,234.6,27.17730708]
[1731885485712,27.17730708,234.69,234.6,27.17730708]
[1731885486419,27.17730708,234.69,234.59,36.1529]
[1731885486420,27.17730708,234.69,234.62,27.17730708]
[1731885486829,27.17730708,234.69,234.63,4.262]
[1731885488143,27.17730708,234.69,234.63,14.917]
[1731885488317,4.2585,234.82,234.68,27.17730708]
[1731885488523,27.17730708,234.77,234.68,27.17730708]
[1731885488709,27.17730708,234.77,234.69,0.25098]
[1731885488908,4.2585,234.82,234.71,14.9119]
[1731885488909,27.17730708,234.79,234.71,14.9119]
[1731885489127,27.17730708,234.79,234.72,27.17730708]
[1731885489337,27.17730708,234.83,234.74,27.17730708]
[1731885490139,27.17730708,234.87,234.78,27.17730708]
[1731885490835,27.17730708,234.89,234.81,0.25098]
[1731885491131,0.1,234.98,234.81,0.25098]
[1731885491132,27.17730708,234.91,234.82,27.17730708]
[1731885491541,27.17730708,234.89,234.81,14.9056]
[1731885491850,27.17730708,234.93,234.84,27.17730708]
[1731885492037,27.17730708,234.89,234.82,27.17730708]
[1731885492330,27.17730708,234.89,234.81,14.9056]
[1731885492521,27.17730708,234.85,234.81,10.6469]
[1731885493312,27.17730708,234.87,234.81,10.6469]
[1731885493537,27.17730708,234.89,234.81,10.6469]
[1731885494321,27.17730708,234.89,234.82,27.17730708]
[1731885494530,27.17730708,234.89,234.81,10.6469]
[1731885494721,27.17730708,234.87,234.81,10.6469]
[1731885494927,27.17730708,234.9,234.82,27.42828708]
[1731885495444,27.17730708,234.9,234.82,27.17730708]
[1731885495643,27.17730708,234.9,234.82,27.42828708]
[1731885495932,27.17730708,234.94,234.86,27.17730708]
[1731885496539,33.35430708,234.96,234.88,27.17730708]
[1731885496938,33.35430708,234.96,234.87,15.15268]
[1731885497144,33.35430708,234.96,234.88,27.17730708]
[1731885497832,27.17730708,234.92,234.87,10.6441]
[1731885498425,10.433,234.96,234.83,4.2583]
[1731885498426,27.17730708,234.88,234.83,4.2583]
[1731885498631,27.17730708,234.86,234.81,10.6464]
[1731885500457,27.17730708,234.82,234.76,14.9085]
[1731885500745,27.17730708,234.77,234.71,10.6512]
[1731885500952,6.4383,234.83,234.66,16.1934]
[1731885500953,27.17730708,234.79,234.73,14.9107]
[1731885501335,6.4383,234.83,234.71,4.2604]
[1731885501336,27.17730708,234.75,234.71,4.2604]
[1731885501542,27.17730708,234.75,234.69,4.2608]
[1731885501733,27.17730708,234.73,234.68,10.6526]
[1731885501936,27.17730708,234.75,234.68,14.9137]
[1731885502144,27.17730708,234.73,234.68,10.6526]
[1731885502451,27.17730708,234.71,234.63,37.83220708]
[1731885502757,27.17730708,234.73,234.65,27.17730708]
[1731885503228,27.17730708,234.73,234.66,4.2614]
[1731885505056,27.17730708,234.73,234.67,0.12549]
[1731885505222,27.17730708,234.81,234.72,0.12549]
[1731885505428,33.61560708,234.83,234.74,27.17730708]
[1731885506353,27.17730708,234.85,234.78,27.17730708]
[1731885506753,27.17730708,234.85,234.76,27.17730708]
[1731885507051,27.17730708,234.85,234.77,14.9081]
[1731885507251,6.4383,234.91,234.82,27.17730708]
[1731885507425,33.61560708,234.91,234.82,27.17730708]
[1731885507746,27.17730708,234.85,234.78,27.17730708]
[1731885508425,162.3,234.9,234.77,14.9081]
[1731885508426,27.17730708,234.83,234.77,14.9081]
[1731885508626,27.17730708,234.85,234.78,27.17730708]
[1731885509132,23.776884,234.86,234.8,27.17730708]
[1731885509862,23.776884,234.86,234.81,4.2587]
[1731885510152,23.776884,234.86,234.8,14.9061]
[1731885510925,27.17730708,234.89,234.81,0.25098]
[1731885511962,27.17730708,234.91,234.82,42.08220708]
[1731885512326,27.17730708,234.91,234.83,0.25098]
[1731885512842,27.17730708,234.93,234.84,27.17730708]
[1731885513039,27.17730708,234.95,234.88,27.17730708]
[1731885513241,27.17730708,234.97,234.89,0.25098]
[1731885513852,27.17730708,234.99,234.91,4.2569]
[1731885514456,27.17730708,234.99,234.91,14.8992]
[1731885514757,27.17730708,235.03,234.94,27.17730708]
[1731885514961,27.17730708,235.03,234.96,27.17730708]
[1731885515129,162.3,235.06,234.96,27.17730708]
[1731885515130,27.17730708,235.05,234.96,27.17730708]
[1731885515329,27.64036448,235.07,234.98,27.17730708]
[1731885516063,0.4630574,235.07,235.0,27.42828708]
[1731885516354,0.4630574,235.07,235.02,27.17730708]
[1731885516652,0.4630574,235.07,235.0,0.25098]
[1731885516653,0.4630574,235.07,235.04,27.17730708]
[1731885516871,0.4630574,235.07,235.06,27.42828708]
[1731885517432,0.4630574,235.07,235.0,0.25098]
[1731885517648,0.4630574,235.07,235.0,27.42828708]
[1731885517831,0.4630574,235.07,235.03,0.25098]
[1731885518045,27.64036448,235.07,234.92,36.2824]
[1731885518359,0.4630574,235.07,235.01,27.17730708]
[1731885519244,0.4630574,235.07,235.02,0.25098]
[1731885519939,0.4630574,235.07,235.03,31.43200708]
[1731885520140,0.4630574,235.07,235.04,0.25098]
[1731885520338,0.4630574,235.07,235.06,0.25098]
[1731885520851,0.4630574,235.07,235.06,0.34465462]
[1731885521445,27.17730708,235.25,235.1,0.22549]
[1731885521635,27.17730708,235.27,235.18,27.17730708]
[1731885521836,27.17730708,235.27,235.19,0.25098]
[1731885522031,27.17730708,235.27,235.2,4.2517]
[1731885522864,27.17730708,235.27,235.2,31.42900708]
[1731885523071,6.4383,235.28,235.2,31.42900708]
[1731885523657,27.17730708,235.27,235.2,4.2517]
[1731885525033,27.17730708,235.27,235.2,31.42900708]
[1731885525345,27.17730708,235.29,235.2,42.05820708]
[1731885525547,27.17730708,235.27,235.2,42.05820708]
[1731885525846,27.17730708,235.22,235.14,10.6316]
[1731885526162,27.17730708,235.18,235.14,14.8843]
[1731885526367,27.17730708,235.18,235.13,0.09367462]
[1731885526656,27.17730708,235.14,235.13,0.09367462]
[1731885528781,27.17730708,235.16,235.13,0.09367462]
[1731885529556,27.17730708,235.18,235.13,0.09367462]
[1731885530152,6.6254,235.26,235.17,0.12549]
[1731885530349,27.17730708,235.25,235.17,0.25098]
[1731885530553,27.17730708,235.25,235.18,27.17730708]
[1731885531240,27.17730708,235.25,235.17,4.50298]
[1731885531841,27.17730708,235.25,235.17,15.13358]
[1731885532362,27.17730708,235.23,235.17,15.13358]
[1731885533140,27.17730708,235.23,235.17,14.8826]
[1731885534244,27.17730708,235.23,235.17,10.6306]
[1731885535377,27.17730708,235.23,235.15,4.2526]
[1731885535378,27.17730708,235.18,235.13,4.34647462]
[1731885535674,23.776884,235.22,235.13,4.34647462]
[1731885535976,27.17730708,235.18,235.13,4.34647462]
[1731885536272,16.66674318,235.17,235.13,4.34647462]
[1731885538888,16.66674318,235.15,235.13,0.09367462]
[1731885539048,23.776884,235.14,235.13,0.09367462]
[1731885539558,16.66674318,235.15,235.13,0.09367462]
[1731885540863,20.91934318,235.15,235.13,0.09367462]
[1731885541047,16.66674318,235.15,235.13,0.09367462]
[1731885541458,23.776884,235.14,235.13,0.09367462]
[1731885542147,43.776884,235.14,235.13,0.09367462]
[1731885542367,43.87055862,235.14,235.13,0.09367462]
[1731885542550,43.87055862,235.14,235.0,10.6379]
[1731885542551,16.66674318,235.02,235.0,10.6379]
[1731885543668,16.66674318,235.04,235.0,10.6379]
[1731885544754,16.66674318,235.02,235.0,10.6379]
[1731885544964,16.66674318,235.04,235.0,10.6379]
[1731885545582,16.66674318,235.02,234.96,4.256]
[1731885545875,16.66674318,235.04,234.97,0.25098]
[1731885546081,16.66674318,235.04,234.97,16.91772318]
[1731885546258,4.2538,235.08,234.97,16.91772318]
[1731885546259,16.66674318,235.06,234.97,16.91772318]
[1731885546456,16.66674318,235.1,235.03,16.66674318]
[1731885547067,16.66674318,235.1,235.01,16.66674318]
[1731885547271,16.66674318,235.06,235.0,0.25098]
[1731885547449,16.66674318,235.06,235.01,14.8929]
[1731885547772,16.66674318,235.04,234.99,4.2554]
[1731885548646,16.66674318,235.04,234.96,10.6398]
[1731885548647,16.66674318,235.02,234.96,10.6398]
[1731885548857,16.66674318,234.98,234.96,10.6398]
[1731885549070,16.66674318,235.05,234.97,16.66674318]
[1731885549645,16.66674318,235.01,234.96,14.8958]
[1731885549849,16.66674318,235.03,234.96,14.8958]
[1731885550147,16.66674318,235.05,234.97,16.66674318]
[1731885550369,16.66674318,235.03,234.96,14.8958]
[1731885550685,4.4535,235.1,234.96,14.8958]
[1731885550686,16.66674318,235.05,234.97,16.66674318]
[1731885550855,16.66674318,235.07,235.0,0.12549]
[1731885551060,16.66674318,235.11,235.04,0.12549]
[1731885551247,16.66674318,235.13,235.05,16.66674318]
[1731885551450,16.66674318,235.13,235.06,0.12549]
[1731885551684,16.66674318,235.15,235.08,0.25098]
[1731885552158,16.66674318,235.15,235.07,16.66674318]
[1731885552551,16.66674318,235.13,235.05,16.66674318]
[1731885552746,16.66674318,235.11,235.04,0.25098]
[1731885553375,16.66674318,235.15,235.07,16.66674318]
[1731885553584,16.66674318,235.15,235.08,0.25098]
[1731885553973,16.66674318,235.21,235.13,16.66674318]
[1731885554772,15.54411692,235.21,235.14,14.8846]
[1731885555157,162.3,235.29,235.15,16.91772318]
[1731885555363,7.0324574,235.31,235.15,16.91772318]
[1731885555364,16.66674318,235.24,235.15,16.91772318]